fUSD/lending_fUSD_20260309
["ID","MTS","AMOUNT","RATE_DAILY","PERIOD"]
[408024374,1773042635547,-500.0,0.00019357,2]
[408024375,1773042635556,-500.0,0.00019357,2]
[408024376,1773042635565,-500.0,0.00019357,2]
[408024377,1773042635575,-500.0,0.00019357,2]
[408024378,1773042635584,-500.0,0.00019357,2]
[408024379,1773042635594,-500.0,0.00019357,2]
[408024380,1773042635603,-500.0,0.00019357,2]
[408024381,1773042635612,-500.0,0.00019357,2]
[408024382,1773042635621,-500.0,0.00019357,2]
[408024383,1773042635631,-500.0,0.00019357,2]
[408024384,1773042635640,-500.0,0.00019357,2]
[408024385,1773042635649,-500.0,0.00019357,2]
[408024386,1773042635659,-500.0,0.00019357,2]
[408024387,1773042635668,-500.0,0.00019357,2]
[408024388,1773042635681,-500.0,0.00019357,2]
[408024389,1773042635690,-500.0,0.00019357,2]
[408024390,1773042635699,-500.0,0.00019357,2]
[408024391,1773042635709,-500.0,0.00019357,2]
[408024392,1773042635719,-500.0,0.00019357,2]
[408024393,1773042635729,-500.0,0.00019357,2]
[408024394,1773042635739,-500.0,0.00019357,2]
[408024395,1773042635750,-500.0,0.00019357,2]
[408024396,1773042635760,-458.07721053,0.00019357,2]
[408024397,1773042635769,-500.0,0.00019357,2]
[408024398,1773042635778,-500.0,0.00019357,2]
[408024399,1773042635787,-500.0,0.00019357,2]
[408024400,1773042635796,-500.0,0.00019357,2]
[408024401,1773042635806,-500.0,0.00019357,2]
[408024402,1773042635815,-500.0,0.00019357,2]
[408024403,1773042635825,-500.0,0.00019357,2]
[408024404,1773042635835,-500.0,0.00019357,2]
[408024405,1773042635844,-500.0,0.00019357,2]
[408024406,1773042635853,-500.0,0.00019357,2]
[408024407,1773042635863,-500.0,0.00019357,2]
[408024408,1773042635873,-500.0,0.00019357,2]
[408024409,1773042635882,-500.0,0.00019357,2]
[408024410,1773042635891,-500.0,0.00019357,2]
[408024411,1773042635900,-500.0,0.00019357,2]
[408024412,1773042635909,-500.0,0.00019357,2]
[408024413,1773042635919,-500.0,0.00019357,2]
[408024414,1773042635928,-500.0,0.00019357,2]
[408024415,1773042635937,-500.0,0.00019357,2]
[408024416,1773042635946,-500.0,0.00019357,2]
[408024417,1773042635956,-500.0,0.00019357,2]
[408024418,1773042635965,-500.0,0.00019357,2]
[408024419,1773042635975,-500.0,0.00019357,2]
[408024420,1773042635985,-500.0,0.00019357,2]
[408024421,1773042635995,-500.0,0.00019357,2]
[408024422,1773042636004,-500.0,0.00019357,2]
[408024423,1773042636014,-500.0,0.00019357,2]
[408024424,1773042636023,-500.0,0.00019357,2]
[408024425,1773042636033,-500.0,0.00019357,2]
[408024426,1773042636043,-500.0,0.00019357,2]
[408024427,1773042636052,-500.0,0.00019357,2]
[408024428,1773042636062,-500.0,0.00019357,2]
[408024429,1773042636071,-500.0,0.00019357,2]
[408024430,1773042636081,-550.0,0.00019357,2]
[408024431,1773042636091,-500.0,0.00019357,2]
[408024432,1773042636100,-500.0,0.00019357,2]
[408024433,1773042636110,-500.0,0.00019357,2]
[408024434,1773042636120,-500.0,0.00019357,2]
[408024435,1773042636129,-500.0,0.00019357,2]
[408024436,1773042636138,-500.0,0.00019357,2]
[408024437,1773042636148,-500.0,0.00019357,2]
[408024438,1773042636158,-500.0,0.00019357,2]
[408024439,1773042636167,-500.0,0.00019357,2]
[408024440,1773042636177,-500.0,0.00019357,2]
[408024441,1773042636187,-303.698795,0.00019357,2]
[408024442,1773042636197,-303.698795,0.00019357,2]
[408024443,1773042636206,-303.698795,0.00019357,2]
[408024444,1773042636216,-303.698795,0.00019357,2]
[408024445,1773042636225,-151.0,0.00019357,2]
[408024446,1773042636234,-71974.1798372,0.00019358,2]
[408024447,1773042636244,-151.0,0.00019358,2]
[408024448,1773042636253,-151.0,0.00019358,2]
[408024449,1773042636262,-151.0,0.00019358,2]
[408024450,1773042636272,-847.0,0.0001936,2]
[408024451,1773042636281,-8531.31265296,0.00019371,2]
[408024452,1773042636290,-4912.23362098,0.0001938,2]
[408024453,1773042636300,-151.0,0.00019382,2]
[408024454,1773042636309,-538.64993636,0.00019387,2]
[408024455,1773042636318,-151.0,0.00019389,2]
[408024456,1773042636329,-298.913867,0.00019389,2]
[408024457,1773042636339,-247.166816,0.00019389,2]
[408024458,1773042636348,-247.166816,0.00019389,2]
[408024459,1773042636357,-247.166816,0.00019389,2]
[408024460,1773042636367,-247.166816,0.00019389,2]
[408024461,1773042636376,-13368.90374285,0.00019392,2]
[408024462,1773042636385,-350.0,0.00019397,3]
[408024463,1773042636395,-2076.72562061,0.000194,2]
[408024464,1773042636404,-91553.46038192,0.00019412,2]
[408024465,1773042636414,-153.481047,0.00019412,2]
[408024466,1773042636423,-185.158099,0.00019412,2]
[408024467,1773042636433,-151.0,0.00019412,2]
[408024468,1773042636445,-151.0,0.00019412,2]
[408024469,1773042636459,-151.0,0.00019412,2]
[408024470,1773042636469,-151.0,0.00019412,2]
[408024471,1773042636478,-156.432679,0.00019412,2]
[408024472,1773042636488,-354.624714,0.00019412,2]
[408024473,1773042636497,-151.0,0.00019412,2]
[408024474,1773042636506,-354.624714,0.00019412,2]
[408024475,1773042636515,-151.0,0.00019412,2]
[408024476,1773042636525,-354.624714,0.00019412,2]
[408024477,1773042636535,-354.624714,0.00019412,2]
[408024478,1773042636544,-151.0,0.00019412,2]
[408024479,1773042636553,-171.124811,0.00019412,2]
[408024480,1773042636562,-171.124811,0.00019412,2]
[408024481,1773042636571,-171.124811,0.00019412,2]
[408024482,1773042636580,-171.124811,0.00019412,2]
[408024483,1773042636590,-152.974718,0.00019412,2]
[408024484,1773042636600,-151.0,0.00019412,2]
[408024485,1773042636610,-151.0,0.00019412,2]
[408024486,1773042636619,-303.698795,0.00019412,2]
[408024487,1773042636628,-303.698795,0.00019412,2]
[408024488,1773042636638,-303.698795,0.00019412,2]
[408024489,1773042636648,-303.698795,0.00019412,2]
[408024490,1773042636657,-151.0,0.00019412,2]
[408024491,1773042636667,-1000.0,0.00019421,2]
[408024492,1773042636677,-159.03847634,0.00019425,2]
[408024493,1773042636689,-500.0,0.00019425,2]
[408024494,1773042636699,-171.41457614,0.00019425,2]
[408024495,1773042636708,-414.0,0.00019429,2]
[408024496,1773042636719,-151.0,0.00019437,2]
[408024497,1773042636731,-2037.9029503,0.00019443,2]
[408024498,1773042636740,-700.0,0.00019452,7]
[408024499,1773042636751,-600.0,0.00019452,7]
[408024500,1773042636760,-1000.0,0.00019452,2]
[408024501,1773042636769,-154.22868,0.00019453,2]
[408024502,1773042636779,-247.166816,0.00019453,2]
[408024503,1773042636788,-247.166816,0.00019453,2]
[408024504,1773042636797,-247.166816,0.00019453,2]
[408024505,1773042636807,-247.166816,0.00019453,2]
[408024506,1773042636816,-358.62420506,0.00019464,2]
[408024507,1773042636825,-4912.23362098,0.00019466,2]
[408024508,1773042636834,-500.0,0.00019473,2]
[408024509,1773042636843,-500.0,0.00019473,2]
[408024510,1773042636853,-1481.23780761,0.0001949,2]
[408024511,1773042636862,-181.08010149,0.0001949,2]
[408024512,1773042636871,-272.62944185,0.0001949,2]
[408024513,1773042636881,-200.0,0.0001949,2]
[408024514,1773042636891,-301.00069851,0.0001949,2]
[408024515,1773042636900,-151.0,0.00019492,2]
[408024516,1773042636910,-2136.69737393,0.000195,2]
[408024517,1773042636919,-216.28694899,0.000195,2]
[408024518,1773042636929,-161.25539473,0.00019507,2]
[408024519,1773042636938,-151.0,0.00019508,2]
[408024520,1773042636947,-335.1,0.0001951,2]
[408024521,1773042636957,-42929.4012668,0.00019511,2]
[408024522,1773042636966,-4212.5823058,0.00019511,2]
[408024523,1773042636975,-3068.0265659,0.00019511,2]
[408024524,1773042636985,-7828.5642185,0.00019511,2]
[408024525,1773042636996,-69998.2771831,0.00019511,2]
[408024526,1773042637006,-151.0,0.00019511,2]
[408024527,1773042637016,-151.0,0.00019511,2]
[408024528,1773042637025,-151.0,0.00019511,2]
[408024529,1773042637035,-151.0,0.00019511,2]
[408024530,1773042637044,-247.6073,0.00019511,2]
[408024531,1773042637053,-151.0,0.00019511,2]
[408024532,1773042637064,-354.624714,0.00019511,2]
[408024533,1773042637073,-151.0,0.00019511,2]
[408024534,1773042637083,-354.624714,0.00019511,2]
[408024535,1773042637094,-152.0828,0.00019511,2]
[408024536,1773042637103,-354.624714,0.00019511,2]
[408024537,1773042637114,-354.624714,0.00019511,2]
[408024538,1773042637123,-151.0,0.00019511,2]
[408024539,1773042637133,-171.124811,0.00019511,2]
[408024540,1773042637142,-171.124811,0.00019511,2]
[408024541,1773042637152,-171.124811,0.00019511,2]
[408024542,1773042637162,-171.124811,0.00019511,2]
[408024543,1773042637171,-247.166816,0.00019511,2]
[408024544,1773042637181,-247.166816,0.00019511,2]
[408024545,1773042637191,-247.166816,0.00019511,2]
[408024546,1773042637200,-247.166816,0.00019511,2]
[408024547,1773042637210,-151.0,0.00019511,2]
[408024548,1773042637220,-151.0,0.00019511,2]
[408024549,1773042637232,-303.698795,0.00019511,2]
[408024550,1773042637242,-303.698795,0.00019511,2]
[408024551,1773042637251,-303.698795,0.00019511,2]
[408024552,1773042637260,-303.698795,0.00019511,2]
[408024553,1773042637269,-151.0,0.00019511,2]
[408024554,1773042637280,-781.45,0.00019517,2]
[408024555,1773042637289,-877.07340192,0.00019519,2]
[408024556,1773042637299,-1000.0,0.00019521,2]
[408024557,1773042637309,-500.0,0.00019521,2]
[408024558,1773042637319,-414.0,0.00019543,2]
[408024559,1773042637330,-151.0,0.00019544,2]
[408024560,1773042637340,-151.0,0.00019544,2]
[408024561,1773042637350,-151.0,0.00019544,2]
[408024562,1773042637360,-354.624714,0.00019544,2]
[408024563,1773042637370,-151.0,0.00019544,2]
[408024564,1773042637380,-354.624714,0.00019544,2]
[408024565,1773042637390,-354.624714,0.00019544,2]
[408024566,1773042637400,-354.624714,0.00019544,2]
[408024567,1773042637410,-171.124811,0.00019544,2]
[408024568,1773042637419,-171.124811,0.00019544,2]
[408024569,1773042637431,-171.124811,0.00019544,2]
[408024570,1773042637441,-171.124811,0.00019544,2]
[408024571,1773042637450,-608.0,0.00019549,2]
[408024572,1773042637460,-4912.23362098,0.00019553,2]
[408024573,1773042637469,-608.0,0.00019563,2]
[408024574,1773042637479,-500.0,0.00019566,2]
[408024575,1773042637488,-500.0,0.00019566,2]
[408024576,1773042637497,-150.90693139,0.00019573,2]
[408024577,1773042637507,-500.0,0.00019573,2]
[408024578,1773042637517,-271.33808081,0.000196,2]
[408024579,1773042637527,-151.0,0.00019607,2]
[408024580,1773042637537,-500.0,0.00019609,2]
[408024581,1773042637547,-500.0,0.00019609,2]
[408024582,1773042637556,-601.94607695,0.00019609,2]
[408024583,1773042637566,-551.10656944,0.00019609,2]
[408024584,1773042637576,-626.05467212,0.00019609,2]
[408024585,1773042637584,-166.90553593,0.00019609,2]
[408024586,1773042637593,-500.0,0.00019609,2]
[408024587,1773042637601,-500.0,0.00019609,2]
[408024588,1773042637610,-500.0,0.00019609,2]
[408024589,1773042637618,-629.4210152,0.00019609,2]
[408024590,1773042637626,-500.0,0.00019609,2]
[408024591,1773042637635,-500.0,0.00019609,2]
[408024592,1773042637643,-206.06052943,0.00019609,2]
[408024593,1773042637651,-151.0,0.0001961,2]
[408024594,1773042637661,-151.34857,0.0001961,2]
[408024595,1773042637669,-152.585166,0.0001961,2]
[408024596,1773042637681,-152.429617,0.0001961,2]
[408024597,1773042637691,-153.178234,0.0001961,2]
[408024598,1773042637701,-151.0,0.0001961,2]
[408024599,1773042637710,-151.0,0.0001961,2]
[408024600,1773042637720,-151.0,0.0001961,2]
[408024601,1773042637730,-151.0,0.0001961,2]
[408024602,1773042637739,-151.0,0.0001961,2]
[408024603,1773042637750,-354.624714,0.0001961,2]
[408024604,1773042637761,-151.0,0.0001961,2]
[408024605,1773042637771,-354.624714,0.0001961,2]
[408024606,1773042637780,-354.624714,0.0001961,2]
[408024607,1773042637789,-354.624714,0.0001961,2]
[408024608,1773042637799,-171.124811,0.0001961,2]
[408024609,1773042637808,-171.124811,0.0001961,2]
[408024610,1773042637817,-171.124811,0.0001961,2]
[408024611,1773042637826,-171.124811,0.0001961,2]
[408024612,1773042637835,-247.166816,0.0001961,2]
[408024613,1773042637845,-247.166816,0.0001961,2]
[408024614,1773042637854,-247.166816,0.0001961,2]
[408024615,1773042637863,-247.166816,0.0001961,2]
[408024616,1773042637872,-151.0,0.0001961,2]
[408024617,1773042637882,-151.0,0.0001961,2]
[408024618,1773042637891,-303.698795,0.0001961,2]
[408024619,1773042637900,-303.698795,0.0001961,2]
[408024620,1773042637909,-303.698795,0.0001961,2]
[408024621,1773042637919,-303.698795,0.0001961,2]
[408024622,1773042637928,-162.979595,0.0001961,2]
[408024623,1773042637937,-318189.70436901,0.0001961,2]
[408024628,1773042638914,-84184.44543099,0.0001961,2]
[408024629,1773042638923,-350.0,0.00019619,2]
[408024630,1773042638933,-168.0,0.00019636,2]
[408024631,1773042638942,-4912.23362098,0.0001964,2]
[408024632,1773042638951,-500.0,0.00019649,2]
[408024633,1773042638961,-500.0,0.00019649,2]
[408024634,1773042638970,-414.0,0.00019657,2]
[408024635,1773042638979,-1301.44,0.00019657,2]
[408024636,1773042638989,-1091.27382541,0.00019662,2]
[408024637,1773042638998,-161.25539473,0.00019671,2]
[408024638,1773042639007,-2037.9029503,0.00019671,2]
[408024639,1773042639016,-168.0,0.00019672,2]
[408024640,1773042639026,-478.0,0.00019672,2]
[408024641,1773042639035,-500.0,0.00019672,2]
[408024642,1773042639045,-1234.0,0.00019672,2]
[408024643,1773042639054,-500.0,0.00019672,2]
[408024644,1773042639064,-700.0,0.00019672,2]
[408024645,1773042639073,-500.0,0.00019672,2]
[408024646,1773042639083,-2101.0,0.00019672,2]
[408024647,1773042639092,-1006.0,0.00019672,2]
[408024648,1773042639101,-500.0,0.00019672,2]
[408024649,1773042639111,-150.0,0.00019672,2]
[408024650,1773042639120,-500.0,0.00019672,2]
[408024651,1773042639129,-500.0,0.00019672,2]
[408024652,1773042639139,-500.0,0.00019672,2]
[408024653,1773042639148,-500.0,0.00019672,2]
[408024654,1773042639158,-150.0,0.00019672,2]
[408024655,1773042639167,-500.0,0.00019672,2]
[408024656,1773042639176,-154.50653522,0.00019672,2]
[408024657,1773042639186,-150.0,0.00019672,2]
[408024658,1773042639195,-500.0,0.00019672,2]
[408024659,1773042639204,-1042.0,0.00019672,2]
[408024660,1773042639213,-150.0,0.00019672,2]
[408024661,1773042639222,-500.0,0.00019672,2]
[408024662,1773042639232,-500.0,0.00019672,2]
[408024663,1773042639241,-500.0,0.00019672,2]
[408024664,1773042639251,-150.0,0.00019672,2]
[408024665,1773042639260,-155.77130971,0.00019672,2]
[408024666,1773042639269,-214.75538024,0.00019672,2]
[408024667,1773042639279,-500.0,0.00019672,2]
[408024668,1773042639287,-150.0,0.00019672,2]
[408024669,1773042639296,-150.0,0.00019672,2]
[408024670,1773042639305,-150.0,0.00019672,2]
[408024671,1773042639313,-500.0,0.00019672,2]
[408024672,1773042639321,-500.0,0.00019672,2]
[408024673,1773042639330,-500.0,0.00019672,2]
[408024674,1773042639340,-500.0,0.00019672,2]
[408024675,1773042639349,-500.0,0.00019672,2]
[408024676,1773042639359,-500.0,0.00019672,2]
[408024677,1773042639368,-150.0,0.00019672,2]
[408024678,1773042639378,-500.0,0.00019672,2]
[408024679,1773042639387,-500.0,0.00019672,2]
[408024680,1773042639396,-500.0,0.00019672,2]
[408024681,1773042639406,-150.0,0.00019672,2]
[408024682,1773042639415,-959.0,0.00019672,2]
[408024683,1773042639424,-500.0,0.00019672,2]
[408024684,1773042639433,-500.0,0.00019672,2]
[408024685,1773042639443,-500.0,0.00019672,2]
[408024686,1773042639452,-542.0,0.00019672,2]
[408024687,1773042639462,-462.0,0.00019672,2]
[408024688,1773042639471,-323.77109867,0.00019673,2]
[408024689,1773042639480,-500.0,0.00019673,2]
[408024690,1773042639490,-500.0,0.00019673,2]
[408024691,1773042639499,-150.0,0.00019673,2]
[408024692,1773042639509,-2806.0,0.0001968,2]
[408024693,1773042639518,-2961.0,0.0001968,2]
[408024694,1773042639528,-900.7976107,0.00019682,2]
[408024695,1773042639538,-1000.0,0.00019688,2]
[408024696,1773042639547,-2946.52206413,0.000197,2]
[408024697,1773042639556,-877.07340192,0.0001971,2]
[408024698,1773042639566,-269.11907877,0.00019726,2]
[408024699,1773042639575,-1000.0,0.00019726,2]
[408024700,1773042639584,-4912.23362098,0.00019727,2]
[408024701,1773042639594,-478.0,0.00019727,2]
[408024702,1773042639603,-622.1097908,0.00019727,2]
[408024703,1773042639613,-1234.0,0.00019727,2]
[408024704,1773042639622,-500.0,0.00019727,2]
[408024705,1773042639631,-700.0,0.00019727,2]
[408024706,1773042639640,-2101.0,0.00019727,2]
[408024707,1773042639650,-1006.0,0.00019727,2]
[408024708,1773042639659,-500.0,0.00019727,2]
[408024709,1773042639668,-500.0,0.00019727,2]
[408024710,1773042639678,-150.0,0.00019727,2]
[408024711,1773042639690,-500.0,0.00019727,2]
[408024712,1773042639700,-500.0,0.00019727,2]
[408024713,1773042639709,-500.0,0.00019727,2]
[408024714,1773042639718,-500.0,0.00019727,2]
[408024715,1773042639730,-500.0,0.00019727,2]
[408024716,1773042639741,-500.0,0.00019727,2]
[408024717,1773042639750,-1042.0,0.00019727,2]
[408024718,1773042639763,-150.0,0.00019727,2]
[408024719,1773042639772,-500.0,0.00019727,2]
[408024720,1773042639781,-500.0,0.00019727,2]
[408024721,1773042639791,-500.0,0.00019727,2]
[408024722,1773042639802,-150.0,0.00019727,2]
[408024723,1773042639813,-500.0,0.00019727,2]
[408024724,1773042639825,-150.0,0.00019727,2]
[408024725,1773042639834,-150.0,0.00019727,2]
[408024726,1773042639843,-500.0,0.00019727,2]
[408024727,1773042639853,-500.0,0.00019727,2]
[408024728,1773042639862,-579.08949688,0.00019727,2]
[408024729,1773042639871,-500.0,0.00019727,2]
[408024730,1773042639881,-500.0,0.00019727,2]
[408024731,1773042639891,-500.0,0.00019727,2]
[408024732,1773042639901,-150.10489082,0.00019727,2]
[408024733,1773042639912,-500.0,0.00019727,2]
[408024734,1773042639921,-500.0,0.00019727,2]
[408024735,1773042639932,-500.0,0.00019727,2]
[408024736,1773042639943,-959.0,0.00019727,2]
[408024737,1773042639952,-500.0,0.00019727,2]
[408024738,1773042639961,-500.42886852,0.00019727,2]
[408024739,1773042639970,-500.0,0.00019727,2]
[408024740,1773042639979,-542.0,0.00019727,2]
[408024741,1773042639988,-462.0,0.00019727,2]
[408024742,1773042639998,-151.0,0.00019727,2]
[408024743,1773042640009,-151.0,0.00019727,2]
[408024744,1773042640018,-151.0,0.00019727,2]
[408024745,1773042640030,-354.624714,0.00019727,2]
[408024746,1773042640042,-151.0,0.00019727,2]
[408024747,1773042640054,-354.624714,0.00019727,2]
[408024748,1773042640063,-354.624714,0.00019727,2]
[408024749,1773042640073,-354.624717,0.00019727,2]
[408024750,1773042640082,-171.124811,0.00019727,2]
[408024751,1773042640092,-171.124811,0.00019727,2]
[408024752,1773042640102,-171.124811,0.00019727,2]
[408024753,1773042640112,-171.124807,0.00019727,2]
[408024754,1773042640123,-247.166816,0.00019727,2]
[408024755,1773042640134,-247.166816,0.00019727,2]
[408024756,1773042640144,-247.166816,0.00019727,2]
[408024757,1773042640154,-247.166824,0.00019727,2]
[408024758,1773042640163,-151.0,0.00019727,2]
[408024759,1773042640174,-267.0,0.00019765,2]
[408024760,1773042640183,-414.0,0.00019771,2]
[408024761,1773042640195,-478.0,0.00019782,2]
[408024762,1773042640205,-1234.0,0.00019782,2]
[408024763,1773042640214,-500.0,0.00019782,2]
[408024764,1773042640225,-700.0,0.00019782,2]
[408024765,1773042640236,-2101.0,0.00019782,2]
[408024766,1773042640246,-1006.0,0.00019782,2]
[408024767,1773042640255,-500.0,0.00019782,2]
[408024768,1773042640265,-500.0,0.00019782,2]
[408024769,1773042640275,-150.0,0.00019782,2]
[408024770,1773042640284,-500.0,0.00019782,2]
[408024772,1773042640294,-500.0,0.00019782,2]
[408024788,1773042640303,-531.76329118,0.00019782,2]
[408024789,1773042640554,-500.0,0.00019782,2]
[408024790,1773042640565,-500.0,0.00019782,2]
[408024791,1773042640576,-500.0,0.00019782,2]
[408024792,1773042640586,-1042.0,0.00019782,2]
[408024793,1773042640596,-150.0,0.00019782,2]
[408024794,1773042640606,-500.0,0.00019782,2]
[408024795,1773042640617,-500.0,0.00019782,2]
[408024796,1773042640626,-500.0,0.00019782,2]
[408024797,1773042640636,-150.0,0.00019782,2]
[408024798,1773042640646,-500.0,0.00019782,2]
[408024799,1773042640656,-161.7233301,0.00019782,2]
[408024800,1773042640665,-500.0,0.00019782,2]
[408024801,1773042640675,-444.99040052,0.00019782,2]
[408024802,1773042640689,-500.0,0.00019782,2]
[408024803,1773042640698,-500.0,0.00019782,2]
[408024804,1773042640708,-500.0,0.00019782,2]
[408024805,1773042640717,-586.34426162,0.00019782,2]
[408024806,1773042640728,-500.0,0.00019782,2]
[408024807,1773042640737,-500.0,0.00019782,2]
[408024808,1773042640747,-959.0,0.00019782,2]
[408024809,1773042640757,-410.57620522,0.00019782,2]
[408024810,1773042640767,-500.0,0.00019782,2]
[408024811,1773042640776,-542.0,0.00019782,2]
[408024812,1773042640785,-462.0,0.00019782,2]
[408024813,1773042640795,-335.1,0.00019784,2]
[408024814,1773042640804,-781.45,0.00019791,2]
[408024815,1773042640815,-900.79761069,0.00019791,2]
[408024816,1773042640824,-3774.323,0.00019804,2]
[408024817,1773042640833,-181.736,0.00019804,2]
[408024818,1773042640843,-500.0,0.00019809,2]
[408024819,1773042640852,-500.0,0.00019809,2]
[408024820,1773042640863,-500.0,0.00019809,2]
[408024821,1773042640873,-500.0,0.00019809,2]
[408024822,1773042640882,-500.0,0.00019809,2]
[408024823,1773042640891,-500.0,0.00019809,2]
[408024824,1773042640900,-500.0,0.00019809,2]
[408024825,1773042640911,-500.0,0.00019809,2]
[408024826,1773042640922,-500.0,0.00019809,2]
[408024827,1773042640933,-500.0,0.00019809,2]
[408024829,1773042640942,-500.0,0.00019809,2]
[408024831,1773042640951,-500.0,0.00019809,2]
[408024832,1773042640962,-500.0,0.00019809,2]
[408024833,1773042640972,-500.0,0.00019809,2]
[408024834,1773042640982,-500.0,0.00019809,2]
[408024835,1773042640993,-500.0,0.00019809,2]
[408024836,1773042641003,-500.0,0.00019809,2]
[408024837,1773042641013,-40063.76422922,0.0001981,2]
[408024838,1773042641026,-1534.81209999,0.0001981,2]
[408024839,1773042641037,-2008.599545,0.0001981,2]
[408024840,1773042641049,-743.4792702,0.0001981,2]
[408024841,1773042641614,-24003.46909723,0.00019265,2]
[408024842,1773042641623,-151.0,0.00019357,2]
[408024843,1773042641633,-151.0,0.00019412,2]
[408024844,1773042641642,-13368.90374285,0.00019519,2]
[408024845,1773042641652,-18246.78685939,0.0001981,2]
[408024846,1773042641661,-151.0,0.0001981,2]
[408024847,1773042641670,-114923.84707944,0.0001981,2]
[408024848,1773042641684,-303.698795,0.0001981,2]
[408024849,1773042641697,-303.698795,0.0001981,2]
[408024850,1773042641706,-303.698795,0.0001981,2]
[408024851,1773042641715,-303.698787,0.0001981,2]
[408024852,1773042641726,-4912.23362098,0.00019813,2]
[408024853,1773042641736,-608.0,0.00019815,2]
[408024854,1773042641745,-608.0,0.00019816,2]
[408024855,1773042641757,-200.01,0.00019833,2]
[408024856,1773042641767,-161.25539473,0.00019836,2]
[408024857,1773042641776,-478.0,0.00019836,2]
[408024858,1773042641785,-1234.0,0.00019836,2]
[408024859,1773042641795,-500.0,0.00019836,2]
[408024860,1773042641804,-700.0,0.00019836,2]
[408024861,1773042641813,-2101.0,0.00019836,2]
[408024862,1773042641822,-1006.0,0.00019836,2]
[408024863,1773042641831,-500.0,0.00019836,2]
[408024864,1773042641841,-500.0,0.00019836,2]
[408024865,1773042641850,-150.0,0.00019836,2]
[408024866,1773042641861,-500.0,0.00019836,2]
[408024867,1773042641874,-500.0,0.00019836,2]
[408024868,1773042641884,-500.0,0.00019836,2]
[408024869,1773042641894,-500.0,0.00019836,2]
[408024870,1773042641904,-500.0,0.00019836,2]
[408024871,1773042641915,-1042.0,0.00019836,2]
[408024872,1773042641925,-277.09096331,0.00019836,2]
[408024873,1773042641935,-150.0,0.00019836,2]
[408024874,1773042641945,-500.0,0.00019836,2]
[408024875,1773042641954,-550.0,0.00019836,2]
[408024876,1773042641964,-150.0,0.00019836,2]
[408024877,1773042641974,-500.0,0.00019836,2]
[408024878,1773042641983,-467.87375586,0.00019836,2]
[408024879,1773042641992,-214.10663282,0.00019836,2]
[408024880,1773042642002,-500.0,0.00019836,2]
[408024881,1773042642011,-500.0,0.00019836,2]
[408024882,1773042642021,-150.0,0.00019836,2]
[408024883,1773042642030,-150.0,0.00019836,2]
[408024884,1773042642041,-959.0,0.00019836,2]
[408024885,1773042642051,-500.0,0.00019836,2]
[408024886,1773042642061,-542.0,0.00019836,2]
[408024887,1773042642075,-462.0,0.00019836,2]
[408024888,1773042642085,-200.0,0.0001984,2]
[408024889,1773042642094,-152.87,0.0001985,2]
[408024890,1773042642104,-250.0,0.00019856,2]
[408024891,1773042642114,-414.0,0.00019886,2]
[408024892,1773042642125,-32927.6463,0.00019888,2]
[408024893,1773042642139,-8482.4506,0.00019888,2]
[408024894,1773042642158,-350.0,0.0001989,2]
[408024895,1773042642179,-478.0,0.00019891,2]